{"text_format":"3","workbook":"xlsx","n_sheets":2,"sheets":["eCatalog Packaged Systems App","Conversion Factors"],"not_rendered":{"images":5,"macros":1,"defined_names":35,"comments":1},"read":"whole","date_system":"1900"}

{"sheet":"eCatalog Packaged Systems App","index":0,"n_rows":240,"n_cols":23,"rows_kept":240,"merged":[[1,1,1,14],[2,1,2,14],[3,1,3,14],[4,2,4,5],[5,2,5,5],[6,2,6,5],[7,3,9,14],[17,1,17,14],[18,2,18,4],[18,5,18,14],[19,2,19,3],[19,4,19,7],[20,1,20,14],[21,2,21,4],[21,5,22,14],[22,2,22,4],[23,1,23,14],[24,3,24,5],[24,6,24,8],[24,9,24,11],[24,13,24,14],[30,1,31,1],[36,1,36,14],[37,1,37,2],[38,3,38,5],[38,6,38,8],[38,9,38,11],[38,13,38,14],[43,1,43,2],[43,4,44,14],[44,2,44,3],[45,3,45,5],[45,6,45,8],[45,9,45,11],[45,13,45,14],[50,1,50,14],[51,2,51,3],[52,2,52,4],[52,5,53,14],[53,2,53,4],[54,4,58,14],[59,1,59,14],[60,2,60,4],[60,5,61,14],[61,2,61,4],[62,1,62,14],[64,1,64,14],[65,2,65,4],[65,5,66,14],[66,2,66,4],[67,1,67,14],[68,4,70,14],[71,1,71,14],[72,3,72,5],[72,6,72,8],[72,9,72,11],[72,13,72,14],[74,3,74,14],[77,1,77,14],[78,2,78,4],[78,5,79,14],[79,2,79,4],[80,5,81,14],[82,1,82,14],[83,4,86,14],[87,1,87,14],[88,1,88,14],[89,3,89,5],[89,6,89,8],[89,9,89,11],[89,13,89,14],[90,5,99,5],[90,8,99,8],[90,11,99,11],[90,14,99,14],[100,1,100,14],[101,2,101,4],[101,5,102,14],[102,2,102,4],[103,3,104,14],[105,1,105,14],[106,4,111,14],[112,1,112,14],[113,1,113,14],[114,3,114,5],[114,6,114,8],[114,9,114,11],[114,13,114,14],[121,1,121,14],[122,1,122,14],[123,3,123,5],[123,6,123,8],[123,9,123,11],[123,13,123,14],[130,1,130,14],[131,4,131,14],[132,1,132,14],[133,3,133,14],[134,3,134,14],[135,3,135,14],[136,3,136,14],[137,2,137,14]]}
[{"$nulls":22},"show"]
[]
[]
[null,"  System Description "]
[null,"Packaged CHP System Model Number"]
[null,"Prime Mover Type","Choose Prime Mover Type",{"$nulls":13},"Choose Prime Mover Type",{"$nulls":5},"Choose fuel type"]
[null,"Number of Prime Movers per System",{"$nulls":14},"Reciprocating Engine",{"$nulls":5},"natural gas"]
[null,"Fuel Type","Choose fuel type",{"$nulls":13},"Microturbine",{"$nulls":5},"propane"]
[null,"Remote Monitoring Capability",{"$nulls":14},"Combustion Turbine",false,{"$nulls":4},"landfill gas"]
[null,"Sound Power @ 3ft height and 30ft distance DbA",{"$nulls":14},"Fuel Cell",{"$nulls":5},"digester gas"]
[null,"System /Component","Width in feet","Length in feet","Height in feet","Weight in pounds"]
[null,"Prime Mover/Generator system (Includes maintenance clearances)"]
[null,"Heat Recovery subsystem if separate (Includes maintenance clearances)"]
[null,"Chiller if separate (Includes maintenance clearances)"]
[null,"Total System Layout (Includes maintenance clearances)"]
[null,"Largest part for delivery"]
[null,"Heaviest part for delivery"]
[null,"  Grid Interconnection"]
[null," Grid interconnection operation","Selection operation modes",{"$nulls":14},"Select Transition Type","Selection operation modes"]
[null,"Transition Type from Grid Parallel to Grid Island and Back to Grid Parallel","Select Transition Type",null,"Explain Other Transition Here",{"$nulls":12},"Manual   ","Grid Parallel Only"]
[null,"  Prime Mover",{"$nulls":15},"Automatic  ","Grid Parallel and Stand-alone"]
[null,"Manufacturer",{"$nulls":15},"Automatic - Flicker Free"]
[null,"Model",{"$nulls":15},"Other Explain"]
[null,"    Performance - Data required for three ambient temperatures: 0°F, 59°F, and 95°F) and four Prime Mover Gross Power Outputs (100%, 75%, 50%, and an Optional Minimum Gross Power Output to Highlight Lowest Power Output Performance Point)",{"$nulls":14},"Choose"]
[null,"Percent Gross Generator Output","%",100,null,null,75,null,null,50,null,null,"Choose","Min Power Output %",null,null,45]
[null,"Ambient Temperature",null,"95F","59F","0F","95F","59F","0F","95F","59F","0F","95F","59F","0F",null,40]
[null,"Prime Mover Gross Power Output","kW",{"$nulls":13},35]
[null,"Prime Mover Net Power Output (Gross minus all parasitics except fuel gas booster compressor and chiller if used)","kW",{"$nulls":13},30]
[null,"Fuel input, HHV (based on 1,030 Btu/scf for natural gas, 2,490 Btu/scf for propane,  476 Btu/scf for land fill gas and  690 Btu/scf for digester gas)","MMBtu/hr",{"$nulls":13},25]
[null,"Exhaust temperature (before after-treatment)","°F",{"$nulls":13},20]
[null,"Exhaust flow rate","Scfm, or"]
[null,null,"lbs/sec"]
[null,"Exhaust maximum available back pressure ","psig",{"$nulls":18},"choose units"]
[null,"Required fuel pressure at control valve for prime mover","psig",{"$nulls":18},"psig"]
[null,"Fuel Supply Pressure","psig",1,25,50,100,300,{"$nulls":13},"inches of water"]
[null,"Fuel Booster compressor power (if required) ","kW"]
[null,"  Emissions Data "]
[null,"Without After-Treatment - Certified third party emissions measurements in accordance with latest EPA test requirements. Indicate Ambient Temperature for emission test in °F"]
[null,"Percent Gross Generator Output","%",100,null,null,75,null,null,50,null,null,{"$f":"$M$25","v":"Choose"},{"$f":"$N$25","v":"Min Power Output %"}]
[null,"Ambient Temperature",null,"95F","59F","0F","95F","59F","0F","95F","59F","0F","95F","59F","0F"]
[null,"NOx emissions ","lb/MWhe"]
[null,"CO emissions ","lb/MWhe",{"$nulls":14},"Select Aftertreatment Type"]
[null,"TVOC emissions ","lb/MWhe",{"$nulls":14},"None"]
[null,"With After-Treatment - Certified third party emissions measurements in accordance with latest EPA test requirements. Indicate Ambient Temperature for emission test in °F",{"$nulls":15},"3-way Catalyst (NSCR) "]
[null,"After-Treatment Type","Select Aftertreatment Type",{"$nulls":14},"Selective Catalytic Reduction"]
[null,"Percent Gross Generator Output","%",100,null,null,75,null,null,50,null,null,{"$f":"$M$25","v":"Choose"},{"$f":"$N$25","v":"Min Power Output %"},{"$nulls":3},"Oxidation Catalyst"]
[null,"Ambient Temperature",null,"95F","59F","0F","95F","59F","0F","95F","59F","0F","95F","59F","0F"]
[null,"NOx emissions ","lb/MWhe"]
[null,"CO emissions ","lb/MWhe"]
[null,"TVOC emissions ","lb/MWhe"]
[null,"  Generator/Inverter ",{"$nulls":14},"Choose Type"]
[null,"Type","Choose Type",{"$nulls":13},"Induction"]
[null,"Manufacturer",{"$nulls":14},"Synchronous  "]
[null,"Model",{"$nulls":14},"Inverter"]
[null,"Power output rating","kW"]
[null,"Power output rating","kVA",{"$nulls":14},false,"hot water"]
[null,"Rated voltage","V",{"$nulls":14},false,"steam 15"]
[null,"Rated efficiency","%",{"$nulls":14},false,"steam 125"]
[null,"Rated current","Amps",{"$nulls":14},false,"chilled water"]
[null,"  Protective Relay/Switchgear",{"$nulls":15},{"$f":"OR(R57,R58)","v":false},"any steam"]
[null,"Protective Relay Manufacturer/Model"]
[null,"Synchronization Manufacturer/Model"]
[null,"  Heat Recovery"]
[null,"Type of Thermal Energy Output "]
[null,"    Hot Water",{"$nulls":20},{"$f":"R56","v":false}]
[null,"Heat Exchanger Manufacturer",{"$nulls":20},{"$f":"W65","v":false}]
[null,"Model",{"$nulls":20},false]
[null,"Maximum Hot Water Capacity",{"$nulls":20},false]
[null,"Maximum continuous HW supply temperature to site","°F",{"$nulls":19},false]
[null,"Minimum return HW temperature (excluding dump radiator heat transfer) from site","°F",{"$nulls":19},false]
[null,"Maximum energy available given the above HW maximum supply and minimum return temperature","MMBtu/hr",{"$nulls":19},false]
[null,"    Performance - Data required for three ambient temperatures: 0°F, 59°F, and 95°F) and four Prime Mover Gross Power Outputs (100%, 75%, 50%, and an Optional Minimum Gross Power Output to Highlight Lowest Power Output Performance Point)",{"$nulls":20},false]
[null,"Percent Gross Generator Output","%",100,null,null,75,null,null,50,null,null,{"$f":"$M$25","v":"Choose"},{"$f":"$N$25","v":"Min Power Output %"},{"$nulls":8},false]
[null,"Ambient Temperature",null,"95F","59F","0F","95F","59F","0F","95F","59F","0F","95F","59F","0F",{"$nulls":7},false]
[null,"HW supply temperature to site (set at 180 °F)","°F",180,{"$nulls":18},false]
[null,"HW return temperature from site","°F",{"$nulls":19},false]
[null,"Hot water capacity at 180 °F and your return temperature","MMBtu/hr",{"$nulls":19},false]
[null,"    Chilled Water                                                                              ",{"$nulls":20},{"$f":"R59","v":false}]
[null,"Chiller Manufacturer",{"$nulls":14},"Exhaust",false,{"$nulls":4},{"$f":"W78","v":false}]
[null,"Model",{"$nulls":14},"Hot Water",false,{"$nulls":4},{"$f":"W79","v":false}]
[null,"Type of thermal energy used",{"$nulls":14},"Steam",false,{"$nulls":4},false]
[null,"Amount of thermal energy used at design point","MMBtu/hr",{"$nulls":14},{"$f":"IF(R79,\"Exhaust\",IF(R80,\"Hot Water\",IF(R81,\"Steam\",\"\")))","v":""},{"$nulls":4},false]
[null,"Maximum Chilled Water Capacity",{"$nulls":20},false]
[null,"Minimum continuous chilled water supply temperature","°F",{"$nulls":19},false]
[null,"Maximum supply/return chilled water temperature differential","°F",{"$nulls":19},false]
[null,"Maximum cooling available at the minimum chilled water supply temperature and maximum differential","MMBtu/hr",{"$nulls":19},false]
[null,"Chiller Coefficient of Performance at the minimum chilled water supply temperature and maximum differential","COP",{"$nulls":19},false]
[null,"Performance at 44 °F supply / 54 °F return temperatures;  for rating purposes use 85°F to 105°F cooling water temperatures. ",{"$nulls":20},false]
[null,"    Performance - Data required for three ambient temperatures: 0°F, 59°F, and 95°F) and four Prime Mover Gross Power Outputs (100%, 75%, 50%, and an Optional Minimum Gross Power Output to Highlight Lowest Power Output Performance Point)",{"$nulls":20},false]
[null,"Percent Gross Generator Output","%",100,null,null,75,null,null,50,null,null,{"$f":"$M$25","v":"Choose"},{"$f":"$N$25","v":"Min Power Output %"},{"$nulls":8},false]
[null,"Ambient Temperature",null,"95F","59F",null,"95F","59F",null,"95F","59F",null,"95F","59F",{"$nulls":8},false]
[null,"Parasitic power (chiller only)","kW",{"$nulls":19},false]
[null,"Hot water/steam/exhaust to chiller temperature","°F",{"$nulls":19},false]
[null,"Hot water/steam/exhaust from chiller temperature","°F",{"$nulls":19},false]
[null,"Hot water/steam/exhaust to chiller energy","MMBtu/hr",{"$nulls":19},false]
[null,"Chiller operating capacity","tons",{"$nulls":19},false]
[null,"Cooling water supply temperature to chiller","°F",{"$nulls":19},false]
[null,"Cooling water return temperature from chiller","°F",{"$nulls":19},false]
[null,"Cooling water flow","gpm",{"$nulls":19},false]
[null,"Chilled water heat  removal energy given flow and delta T above","MMBtu/hr",{"$nulls":19},false]
[null,"    Steam (HRSG)",{"$nulls":20},{"$f":"OR(W113,W122)","v":false}]
[null,"Manufacturer",{"$nulls":20},{"$f":"W101","v":false}]
[null,"Model",{"$nulls":20},{"$f":"W102","v":false}]
[null,"Amount of thermal energy used in MBtu/hr",{"$nulls":20},false]
[null,"Does HRSG have supplemental firing capability?","No",{"$nulls":13},"Yes",{"$nulls":5},false]
[null,"Maximum Steam Capacity",{"$nulls":14},"No",{"$nulls":5},false]
[null,"Maximum Steam Output Pressure (unfired)","psig",{"$nulls":19},false]
[null,"Maximum Steam Output Temperature (unfired)","°F",{"$nulls":19},false]
[null,"Feedwater inlet temperature for above T/P","°F",{"$nulls":19},false]
[null,"Steam Output for Max T/P above (unfired)","Klbs/hr",{"$nulls":19},false]
[null,"Steam Output for Max T/P above (fully fired)","Klbs/hr",{"$nulls":19},{"$f":"W110","v":false}]
[null,"Duct burner fuel input (fully fired), HHV","MMBtu/hr",{"$nulls":19},{"$f":"W111","v":false}]
[null,"    Performance for 15 psig saturated steam",{"$nulls":20},{"$f":"R57","v":false}]
[null,"    Performance - Data required for three ambient temperatures: 0°F, 59°F, and 95°F) and four Prime Mover Gross Power Outputs (100%, 75%, 50%, and an Optional Minimum Gross Power Output to Highlight Lowest Power Output Performance Point)",{"$nulls":20},{"$f":"W113","v":false}]
[null,"Percent Gross Generator Output","%",100,null,null,75,null,null,50,null,null,{"$f":"$M$25","v":"Choose"},{"$f":"$N$25","v":"Min Power Output %"},{"$nulls":8},{"$f":"W114","v":false}]
[null,"Ambient Temperature",null,"95F","59F","0F","95F","59F","0F","95F","59F","0F","95F","59F","0F",{"$nulls":7},false]
[null,"HRSG pressure drop","psig",{"$nulls":19},false]
[null,"Feedwater inlet temperature","°F",{"$nulls":19},false]
[null,"Steam Output (unfired)","Klbs/hr",{"$nulls":19},false]
[null,"Steam Output (fully fired)","Klbs/hr",{"$nulls":19},{"$f":"W119","v":false}]
[null,"Duct burner fuel input (fully fired), HHV","MMBtu/hr",{"$nulls":19},{"$f":"W120","v":false}]
[null,"    Performance for 125 psig saturated steam",{"$nulls":20},{"$f":"R58","v":false}]
[null,"    Performance - Data required for three ambient temperatures: 0°F, 59°F, and 95°F) and four Prime Mover Gross Power Outputs (100%, 75%, 50%, and an Optional Minimum Gross Power Output to Highlight Lowest Power Output Performance Point)",{"$nulls":20},{"$f":"W122","v":false}]
[null,"Percent Gross Generator Output","%",100,null,null,75,null,null,50,null,null,{"$f":"$M$25","v":"Choose"},{"$f":"$N$25","v":"Min Power Output %"},{"$nulls":8},{"$f":"W123","v":false}]
[null,"Ambient Temperature",null,"95F","59F","0F","95F","59F","0F","95F","59F","0F","95F","59F","0F",{"$nulls":7},false]
[null,"HRSG pressure drop","psig",{"$nulls":19},false]
[null,"Feedwater inlet temperature","°F",{"$nulls":19},false]
[null,"Steam Output (unfired)","Klbs/hr",{"$nulls":19},false]
[null,"Steam Output (fully fired)","Klbs/hr",{"$nulls":19},{"$f":"W128","v":false}]
[null,"Duct burner fuel input (fully fired), HHV","MMBtu/hr",{"$nulls":19},{"$f":"W129","v":false}]
[null,"  System Availability"]
[null,"System Availability","%"]
[null," Certifications"]
[null,"IEEE 1574 Compliant",null," - Provide documentation if Yes",{"$nulls":11},false]
[null,"UL 1741",null," - Provide documentation if Yes",{"$nulls":11},false]
[null,"UL 2200",null," - Provide documentation if Yes",{"$nulls":11},false]
[null,"Other",null," - List others below and provide documentation",{"$nulls":11},false]
[null,"List Other"]
{"$rows_empty":101}
[{"$nulls":22},false]

{"sheet":"Conversion Factors","index":1,"n_rows":43,"n_cols":5,"rows_kept":43,"merged":[[1,1,1,13],[3,2,3,13],[4,2,4,13],[5,2,5,13],[6,2,6,13],[7,2,7,13],[8,2,8,13],[9,2,9,13],[10,2,10,13],[11,2,11,13],[12,2,12,13],[13,2,13,13],[14,2,14,13],[15,2,15,13],[16,2,16,13],[17,2,17,13],[18,2,18,13],[20,2,20,13],[36,2,36,13]]}
[]
[null,"Energy and Emissions Conversions"]
[]
[null,null,"Energy Conversions:"]
[null,null,"·         Conversion from Btu Higher Heating Value (HHV) to Btu Lower Heating Value (LHV) multiply by 0.91 for natural gas"]
[null,null,"·         Conversion from lb/MMBtu HHV to lb/MMBtu LHV multiply by 1.099 for natural gas"]
[null,null,"·         HHV Natural Gas 1,030 (Btu/scf), 21,980 (Btu/lb)"]
[null,null,"·         LHV Natural Gas 937 (Btu/scf), 20,000 (Btu/lb)"]
[null,null,"·         1 horsepower hour (hp-hr) = 2,545 Btu"]
[null,null,"·         1,000,000 Btu = 1 MMBtu = 392.9 hp-hr"]
[null,null,"·         1 kW = 3,413 Btu per hour (Btu/hr)"]
[null,null,"·         1 MMBtu/hr = 293 kW"]
[null,null,"·         1 kWh = 3,413 Btu"]
[null,null,"·         1 MMBtu = 293 kWh"]
[null,null,"·         0.7457 kW = 1 hp"]
[null,null,"·         1 kW = 1.341 hp"]
[]
[null,null,"Emissions Conversions:"]
[]
[null,null,"Combustion Turbines and Microturbines  "]
[null,null,"Criteria pollutant emissions for turbines are typically presented as parts per million (ppm) reported at 15 percent O2 in the exhaust stack.  The eCatalog is requesting emissions data in an output based format (lb per MWh) in order to facilitate a common comparison among technologies and systems."]
[null,null,"Conversion factor table for Natural Gas combustion at 15% O2"]
[{"$nulls":3},"HHV","LHV"]
[null,null,"NOx",272,248]
[null,null,"CO",446,406]
[null,null,"SO2",196,178]
[]
[null,null,"Conversion from ppm to lb/MWh using heat rate "]
[]
[]
[null,null,"Conversion from ppm to lb/MWh using efficiency "]
[]
[]
[]
[]
[null,null,"Recip Engines"]
[null,null,"Criteria pollutant emissions for engines typically are reported as g/hp-hr.  The eCatolog is requesting emissions data in an output based format (lb per MWh) in order to facilitate a common comparison among technologies and systems. The efficiency of engines is described in terms of percent efficiency or brake specific fuel consumption (BSFC) in Btu/hp-hr."]
[]
[null,null,"Conversion from BSFC to % efficiency "]
[]
[]
[]
[null,null,"Conversion from g/hp-hr to lb/MWh "]